[Event "*** Titled Tuesday Blitz"]
[Site "Chess.com"]
[Date "2020.04.21"]
[Round "5"]
[White "promen1999"]
[Black "Arjun2002"]
[Result "0-1"]
[WhiteElo "2913"]
[BlackElo "2667"]
[TimeControl "180+1"]
[EndTime "10:57:54 PDT"]
[Termination "Arjun2002 won by resignation"]

1. d4 {[%clk 0:03:00.9]} 1... d5 {[%clk 0:02:58.4]} 2. Nf3 {[%clk 0:03:00.7]}
2... Nf6 {[%clk 0:02:57.6]} 3. g3 {[%clk 0:03:00.5]} 3... c6 {[%clk 0:02:52.6]}
4. Bg2 {[%clk 0:03:00.4]} 4... Bg4 {[%clk 0:02:52.7]} 5. c4 {[%clk 0:03:00.5]}
5... e6 {[%clk 0:02:52]} 6. Nc3 {[%clk 0:02:57.6]} 6... Be7 {[%clk 0:02:49.8]}
7. h3 {[%clk 0:02:53]} 7... Bh5 {[%clk 0:02:48]} 8. Qb3 {[%clk 0:02:51.1]} 8...
Qb6 {[%clk 0:02:47]} 9. c5 {[%clk 0:02:51.3]} 9... Qxb3 {[%clk 0:02:31.7]} 10.
axb3 {[%clk 0:02:50.8]} 10... Nfd7 {[%clk 0:02:31.2]} 11. g4 {[%clk 0:02:47.2]}
11... Bg6 {[%clk 0:02:30.5]} 12. Bf4 {[%clk 0:02:47.8]} 12... Na6 {[%clk
0:02:21.3]} 13. Kd2 {[%clk 0:02:34]} 13... Bd8 {[%clk 0:02:10.5]} 14. e3 {[%clk
0:02:31.2]} 14... Nc7 {[%clk 0:02:00.6]} 15. b4 {[%clk 0:02:23.7]} 15... a6
{[%clk 0:02:00.4]} 16. Bxc7 {[%clk 0:02:09.6]} 16... Bxc7 {[%clk 0:01:59.8]} 17.
b5 {[%clk 0:02:10.1]} 17... Ke7 {[%clk 0:01:36.5]} 18. b6 {[%clk 0:02:07.2]}
18... Bd8 {[%clk 0:01:36.5]} 19. b4 {[%clk 0:01:57]} 19... Rb8 {[%clk
0:01:36.6]} 20. Nh4 {[%clk 0:01:40]} 20... f6 {[%clk 0:01:32]} 21. f4 {[%clk
0:01:35.7]} 21... Bf7 {[%clk 0:01:27.1]} 22. Nf3 {[%clk 0:01:35.3]} 22... h5
{[%clk 0:01:25.4]} 23. e4 {[%clk 0:01:27.9]} 23... Nf8 {[%clk 0:01:08.2]} 24. f5
{[%clk 0:01:21.9]} 24... dxe4 {[%clk 0:00:42.6]} 25. Nxe4 {[%clk 0:01:20.3]}
25... Kd7 {[%clk 0:00:39.7]} 26. Nd6 {[%clk 0:00:45.4]} 26... Bg8 {[%clk
0:00:38.1]} 27. g5 {[%clk 0:00:39.9]} 27... Bxb6 {[%clk 0:00:33.2]} 28. gxf6
{[%clk 0:00:29]} 28... gxf6 {[%clk 0:00:32.7]} 29. h4 {[%clk 0:00:26.8]} 29...
Bc7 {[%clk 0:00:31.3]} 30. Ne4 {[%clk 0:00:26]} 30... Rh6 {[%clk 0:00:27.5]} 31.
Bh3 {[%clk 0:00:26]} 31... exf5 {[%clk 0:00:27.7]} 32. Bxf5+ {[%clk 0:00:25.7]}
32... Be6 {[%clk 0:00:28]} 33. Bxe6+ {[%clk 0:00:24.5]} 33... Nxe6 {[%clk
0:00:28.3]} 34. Kc3 {[%clk 0:00:25]} 34... Rg8 {[%clk 0:00:26.7]} 35. Rad1
{[%clk 0:00:24]} 35... Rg4 {[%clk 0:00:25.4]} 36. Rhe1 {[%clk 0:00:21.8]} 36...
Nf4 {[%clk 0:00:25.5]} 37. Nfd2 {[%clk 0:00:15.1]} 37... Nd5+ {[%clk 0:00:25.5]}
38. Kb3 {[%clk 0:00:15.2]} 38... Rxh4 {[%clk 0:00:25.4]} 39. Nc4 {[%clk
0:00:13.9]} 39... Rh3+ {[%clk 0:00:25.5]} 40. Kb2 {[%clk 0:00:13.7]} 40... Rg6
{[%clk 0:00:25]} 41. Rd2 {[%clk 0:00:11.6]} 41... Nxb4 {[%clk 0:00:20.9]} 42.
Kb1 {[%clk 0:00:11.3]} 42... Nd5 {[%clk 0:00:19.4]} 43. Ned6 {[%clk 0:00:11.1]}
43... Bxd6 {[%clk 0:00:19.2]} 44. Nxd6 {[%clk 0:00:09.9]} 44... Rgg3 {[%clk
0:00:15.4]} 45. Rb2 {[%clk 0:00:04.6]} 45... Rb3 {[%clk 0:00:15.2]} 46. Nxb7
{[%clk 0:00:01.9]} 46... Rxb2+ {[%clk 0:00:14.9]} 47. Kxb2 {[%clk 0:00:01.8]}
47... Rd3 {[%clk 0:00:14.2]} 48. Nd6 {[%clk 0:00:02.7]} 48... Rxd4 {[%clk
0:00:14.3]} 49. Rg1 {[%clk 0:00:02.6]} 49... Rg4 {[%clk 0:00:13.6]} 50. Rh1
{[%clk 0:00:02.4]} 50... h4 {[%clk 0:00:13.9]} 51. Rh3 {[%clk 0:00:02.6]} 51...
Nf4 {[%clk 0:00:13.3]} 52. Ra3 {[%clk 0:00:03]} 52... h3 {[%clk 0:00:13.1]} 53.
Ne4 {[%clk 0:00:01.8]} 53... h2 {[%clk 0:00:12.6]} 54. Ra1 {[%clk 0:00:01.3]}
54... Rg1 {[%clk 0:00:12.4]} 55. Kc3 {[%clk 0:00:01.1]} 55... Rxa1 {[%clk
0:00:11.7]} 56. Nxf6+ {[%clk 0:00:02]} 56... Ke6 {[%clk 0:00:11.4]} 57. Ng4
{[%clk 0:00:02.9]} 57... h1=Q {[%clk 0:00:11.4]} 0-1

[Event "*** Titled Tuesday Blitz"]
[Site "Chess.com"]
[Date "2020.04.21"]
[Round "5"]
[White "Kingsman132"]
[Black "WhiteKnight2612"]
[Result "1/2-1/2"]
[WhiteElo "2490"]
[BlackElo "2642"]
[TimeControl "180+1"]
[EndTime "10:57:55 PDT"]
[Termination "Game drawn - insufficient material"]

1. e4 {[%clk 0:03:00.9]} 1... e5 {[%clk 0:02:55.3]} 2. Nf3 {[%clk 0:03:00.5]}
2... Nc6 {[%clk 0:02:52.2]} 3. Bb5 {[%clk 0:02:58.8]} 3... a6 {[%clk 0:02:45.2]}
4. Bxc6 {[%clk 0:02:57.8]} 4... dxc6 {[%clk 0:02:46.1]} 5. O-O {[%clk
0:02:57.2]} 5... f6 {[%clk 0:02:42.4]} 6. d4 {[%clk 0:02:56.9]} 6... exd4 {[%clk
0:02:43.3]} 7. Qxd4 {[%clk 0:02:55]} 7... Bd6 {[%clk 0:02:42.2]} 8. e5 {[%clk
0:02:49.1]} 8... fxe5 {[%clk 0:02:39.9]} 9. Nxe5 {[%clk 0:02:42.3]} 9... Be6
{[%clk 0:02:35.7]} 10. Re1 {[%clk 0:02:34.8]} 10... Ne7 {[%clk 0:02:35.7]} 11.
Bg5 {[%clk 0:02:21.6]} 11... O-O {[%clk 0:02:25.1]} 12. Bxe7 {[%clk 0:02:06.1]}
12... Qxe7 {[%clk 0:02:23.2]} 13. Nf3 {[%clk 0:02:01.9]} 13... Rae8 {[%clk
0:02:08.4]} 14. Nc3 {[%clk 0:01:58.5]} 14... Bc5 {[%clk 0:02:05.4]} 15. Rxe6
{[%clk 0:01:43.9]} 15... Bxd4 {[%clk 0:02:05.4]} 16. Rxe7 {[%clk 0:01:44.1]}
16... Bxf2+ {[%clk 0:02:04.1]} 17. Kxf2 {[%clk 0:01:43.1]} 17... Rxe7 {[%clk
0:02:05]} 18. Re1 {[%clk 0:01:41.5]} 18... Rxe1 {[%clk 0:02:05.1]} 19. Kxe1
{[%clk 0:01:41.2]} 19... Kf7 {[%clk 0:02:02.9]} 20. Kd2 {[%clk 0:01:37.6]} 20...
h6 {[%clk 0:02:02.1]} 21. a4 {[%clk 0:01:32.2]} 21... b6 {[%clk 0:01:53.1]} 22.
Ne5+ {[%clk 0:01:29]} 22... Ke6 {[%clk 0:01:53.2]} 23. Nd3 {[%clk 0:01:26]}
23... c5 {[%clk 0:01:51.7]} 24. Ke3 {[%clk 0:01:25.5]} 24... g5 {[%clk
0:01:48.7]} 25. b3 {[%clk 0:01:24.3]} 25... Kd6 {[%clk 0:01:44.4]} 26. Nb2
{[%clk 0:01:23.6]} 26... Re8+ {[%clk 0:01:40.9]} 27. Kd3 {[%clk 0:01:21.4]}
27... Rf8 {[%clk 0:01:40.2]} 28. Nc4+ {[%clk 0:01:20.5]} 28... Ke6 {[%clk
0:01:39.8]} 29. Ke3 {[%clk 0:01:16.2]} 29... Rb8 {[%clk 0:01:24.5]} 30. Ne4
{[%clk 0:01:15]} 30... Kd5 {[%clk 0:01:18.4]} 31. Nf6+ {[%clk 0:01:07.3]} 31...
Ke6 {[%clk 0:01:18.7]} 32. Ne4 {[%clk 0:01:06.9]} 32... Kd5 {[%clk 0:01:18.5]}
33. Nf6+ {[%clk 0:01:06.4]} 33... Ke6 {[%clk 0:01:18.6]} 34. Ng4 {[%clk
0:01:06.7]} 34... h5 {[%clk 0:01:16.4]} 35. Nf2 {[%clk 0:01:04.9]} 35... b5
{[%clk 0:01:16]} 36. axb5 {[%clk 0:01:04.6]} 36... axb5 {[%clk 0:01:16.9]} 37.
Nd2 {[%clk 0:01:05.1]} 37... Kd5 {[%clk 0:01:14.2]} 38. c4+ {[%clk 0:01:01.9]}
38... Kc6 {[%clk 0:01:14.2]} 39. Nfe4 {[%clk 0:00:59.4]} 39... Re8 {[%clk
0:01:14.3]} 40. Kf3 {[%clk 0:00:58.1]} 40... Re5 {[%clk 0:01:09.2]} 41. g3
{[%clk 0:00:53.5]} 41... Rf5+ {[%clk 0:01:07.3]} 42. Ke3 {[%clk 0:00:53.1]}
42... Re5 {[%clk 0:01:07.7]} 43. h4 {[%clk 0:00:52.4]} 43... gxh4 {[%clk
0:00:55.6]} 44. gxh4 {[%clk 0:00:53.3]} 44... Rf5 {[%clk 0:00:55.9]} 45. Ng3
{[%clk 0:00:51.5]} 45... Rf8 {[%clk 0:00:51.8]} 46. Nde4 {[%clk 0:00:48]} 46...
Rh8 {[%clk 0:00:49.5]} 47. Nf6 {[%clk 0:00:47.4]} 47... Rh6 {[%clk 0:00:49]} 48.
Ngxh5 {[%clk 0:00:47.2]} 48... Kb6 {[%clk 0:00:43.5]} 49. Kf4 {[%clk 0:00:45.3]}
49... Ka5 {[%clk 0:00:41.7]} 50. Kg5 {[%clk 0:00:45.4]} 50... Rh8 {[%clk
0:00:42.2]} 51. Nf4 {[%clk 0:00:42.4]} 51... Kb4 {[%clk 0:00:41]} 52. cxb5
{[%clk 0:00:42.4]} 52... Kxb3 {[%clk 0:00:40.3]} 53. h5 {[%clk 0:00:41]} 53...
c4 {[%clk 0:00:39.3]} 54. N6d5 {[%clk 0:00:40.2]} 54... c3 {[%clk 0:00:36.5]}
55. Nxc3 {[%clk 0:00:39.2]} 55... Kxc3 {[%clk 0:00:35.9]} 56. Nd5+ {[%clk
0:00:39.2]} 56... Kd4 {[%clk 0:00:25.5]} 57. Nxc7 {[%clk 0:00:40.1]} 57... Ke5
{[%clk 0:00:25.1]} 58. Kg6 {[%clk 0:00:34.4]} 58... Kd6 {[%clk 0:00:25]} 59. Na6
{[%clk 0:00:28.1]} 59... Rg8+ {[%clk 0:00:24.5]} 60. Kf7 {[%clk 0:00:25.5]}
60... Rg5 {[%clk 0:00:24.1]} 61. h6 {[%clk 0:00:19.6]} 61... Rxb5 {[%clk
0:00:18.4]} 62. Kg6 {[%clk 0:00:19.9]} 62... Rb7 {[%clk 0:00:17.1]} 63. h7
{[%clk 0:00:19.6]} 63... Rxh7 {[%clk 0:00:16.8]} 64. Kxh7 {[%clk 0:00:20.5]}
1/2-1/2

[Event "*** Titled Tuesday Blitz"]
[Site "Chess.com"]
[Date "2020.04.21"]
[Round "5"]
[White "Danfii"]
[Black "cholzan"]
[Result "0-1"]
[WhiteElo "2295"]
[BlackElo "2495"]
[TimeControl "180+1"]
[EndTime "10:57:55 PDT"]
[Termination "cholzan won by resignation"]

1. e4 {[%clk 0:03:00.9]} 1... e6 {[%clk 0:02:59.1]} 2. d4 {[%clk 0:03:00.7]}
2... d5 {[%clk 0:02:59.3]} 3. Nd2 {[%clk 0:03:01.2]} 3... Be7 {[%clk 0:02:58.2]}
4. Ngf3 {[%clk 0:03:00.5]} 4... f6 {[%clk 0:02:58.2]} 5. Bd3 {[%clk 0:02:57.8]}
5... Nh6 {[%clk 0:02:56.1]} 6. O-O {[%clk 0:02:56.2]} 6... Nf7 {[%clk
0:02:49.5]} 7. Re1 {[%clk 0:02:55.7]} 7... O-O {[%clk 0:02:48.6]} 8. c3 {[%clk
0:02:49.6]} 8... c6 {[%clk 0:02:47.3]} 9. Nf1 {[%clk 0:02:48.8]} 9... Bd6 {[%clk
0:02:46.9]} 10. Ng3 {[%clk 0:02:48.3]} 10... Qc7 {[%clk 0:02:45.5]} 11. c4
{[%clk 0:02:34.6]} 11... Na6 {[%clk 0:02:30.7]} 12. a3 {[%clk 0:02:26.6]} 12...
Bf4 {[%clk 0:02:28.7]} 13. b4 {[%clk 0:02:22.1]} 13... Bd7 {[%clk 0:02:09.6]}
14. Qc2 {[%clk 0:02:14.5]} 14... b5 {[%clk 0:02:01.3]} 15. e5 {[%clk 0:01:41.8]}
15... Bxc1 {[%clk 0:01:53.2]} 16. Bxh7+ {[%clk 0:01:41.2]} 16... Kh8 {[%clk
0:01:53.7]} 17. Raxc1 {[%clk 0:01:37.9]} 17... f5 {[%clk 0:01:53.7]} 18. Bxf5
{[%clk 0:01:30]} 18... exf5 {[%clk 0:01:53.1]} 19. cxd5 {[%clk 0:01:23.5]} 19...
Nh6 {[%clk 0:01:39]} 20. d6 {[%clk 0:01:20]} 20... Qc8 {[%clk 0:01:37.5]} 21.
Nh4 {[%clk 0:01:18.2]} 21... Kg8 {[%clk 0:01:34.6]} 22. Ng6 {[%clk 0:01:16.3]}
22... Re8 {[%clk 0:01:34.6]} 23. Nf4 {[%clk 0:01:14]} 23... Nb8 {[%clk
0:01:19.5]} 24. d5 {[%clk 0:01:03.6]} 24... cxd5 {[%clk 0:01:16.8]} 25. Qxc8
{[%clk 0:01:02.9]} 25... Bxc8 {[%clk 0:01:13.9]} 26. Nxd5 {[%clk 0:00:56.9]}
26... Be6 {[%clk 0:00:56.6]} 27. Nc7 {[%clk 0:00:52.6]} 27... Nd7 {[%clk
0:00:56.8]} 28. Nxa8 {[%clk 0:00:51.7]} 28... Rxa8 {[%clk 0:00:56.7]} 29. Rc7
{[%clk 0:00:47.1]} 29... a5 {[%clk 0:00:56.6]} 30. Rec1 {[%clk 0:00:44.3]} 30...
axb4 {[%clk 0:00:55.6]} 31. Rc8+ {[%clk 0:00:36.7]} 31... Rxc8 {[%clk
0:00:54.8]} 32. Rxc8+ {[%clk 0:00:37.6]} 32... Kf7 {[%clk 0:00:55]} 33. axb4
{[%clk 0:00:38.5]} 33... Nxe5 {[%clk 0:00:54.7]} 34. Rc5 {[%clk 0:00:35.2]}
34... Nc4 {[%clk 0:00:52.8]} 35. Rxb5 {[%clk 0:00:32.5]} 35... Nxd6 {[%clk
0:00:52.7]} 36. Rb6 {[%clk 0:00:33]} 36... Ke7 {[%clk 0:00:48.5]} 37. Ne2 {[%clk
0:00:30.1]} 37... Nhf7 {[%clk 0:00:42.9]} 38. Nf4 {[%clk 0:00:29.1]} 38... Bc4
{[%clk 0:00:42.8]} 39. Ng6+ {[%clk 0:00:26.3]} 39... Kf6 {[%clk 0:00:42.9]} 40.
Nf4 {[%clk 0:00:25.5]} 40... Ke5 {[%clk 0:00:41.7]} 41. Ng6+ {[%clk 0:00:23.2]}
41... Kd4 {[%clk 0:00:41.6]} 42. h4 {[%clk 0:00:19.8]} 42... Ne4 {[%clk
0:00:37.3]} 43. f3 {[%clk 0:00:16.9]} 43... Nc3 {[%clk 0:00:36.5]} 44. Rb7
{[%clk 0:00:13.8]} 44... Ke3 {[%clk 0:00:31]} 45. g4 {[%clk 0:00:09]} 45... f4
{[%clk 0:00:29.5]} 46. h5 {[%clk 0:00:05.2]} 46... Ng5 {[%clk 0:00:25.1]} 47.
Rxg7 {[%clk 0:00:03.7]} 47... Nxf3+ {[%clk 0:00:24.8]} 48. Kg2 {[%clk
0:00:03.4]} 48... Ne1+ {[%clk 0:00:24.6]} 49. Kh1 {[%clk 0:00:02.8]} 49... f3
{[%clk 0:00:25.1]} 50. Nh4 {[%clk 0:00:01.3]} 50... f2 {[%clk 0:00:24.9]} 51.
Ng2+ {[%clk 0:00:01.7]} 51... Nxg2 {[%clk 0:00:24.2]} 52. Kxg2 {[%clk
0:00:02.6]} 52... f1=Q+ {[%clk 0:00:24.4]} 0-1

[Event "*** Titled Tuesday Blitz"]
[Site "Chess.com"]
[Date "2020.04.21"]
[Round "5"]
[White "reniite"]
[Black "H3nriqueTV"]
[Result "1/2-1/2"]
[WhiteElo "1940"]
[BlackElo "2138"]
[TimeControl "180+1"]
[EndTime "10:57:56 PDT"]
[Termination "Game drawn - insufficient material"]

1. e4 {[%clk 0:03:00.9]} 1... c5 {[%clk 0:02:58.3]} 2. Nf3 {[%clk 0:03:00.6]}
2... b6 {[%clk 0:02:57.9]} 3. d4 {[%clk 0:02:41.2]} 3... cxd4 {[%clk 0:02:58.8]}
4. Nxd4 {[%clk 0:02:41.1]} 4... Bb7 {[%clk 0:02:58.8]} 5. Nc3 {[%clk 0:02:40.9]}
5... a6 {[%clk 0:02:59.4]} 6. g3 {[%clk 0:02:37.4]} 6... e6 {[%clk 0:02:58.2]}
7. Bg2 {[%clk 0:02:37.8]} 7... Qc7 {[%clk 0:02:58.7]} 8. O-O {[%clk 0:02:37.2]}
8... Nc6 {[%clk 0:02:58]} 9. Re1 {[%clk 0:02:15]} 9... Bc5 {[%clk 0:02:50.9]}
10. Nd5 {[%clk 0:01:01.8]} 10... Qd8 {[%clk 0:02:46.5]} 11. Nf5 {[%clk
0:00:53.1]} 11... exf5 {[%clk 0:02:07.1]} 12. exf5+ {[%clk 0:00:52.6]} 12...
Nce7 {[%clk 0:02:06.9]} 13. Bf4 {[%clk 0:00:49.1]} 13... Bxd5 {[%clk 0:02:01.3]}
14. Qxd5 {[%clk 0:00:47.2]} 14... Nf6 {[%clk 0:01:47.9]} 15. Qxa8 {[%clk
0:00:46.1]} 15... Qxa8 {[%clk 0:01:48.8]} 16. Bxa8 {[%clk 0:00:46.3]} 16... O-O
{[%clk 0:01:48.7]} 17. Bg2 {[%clk 0:00:46.3]} 17... Nxf5 {[%clk 0:01:48.5]} 18.
Rad1 {[%clk 0:00:46]} 18... d6 {[%clk 0:01:46.4]} 19. c3 {[%clk 0:00:45.7]}
19... h6 {[%clk 0:01:44.1]} 20. b4 {[%clk 0:00:45.8]} 20... g5 {[%clk
0:01:43.5]} 21. Bc1 {[%clk 0:00:45.4]} 21... Bxf2+ {[%clk 0:01:27.5]} 22. Kxf2
{[%clk 0:00:44.9]} 22... Ng4+ {[%clk 0:01:28.4]} 23. Kg1 {[%clk 0:00:45.4]}
23... Rc8 {[%clk 0:01:25.4]} 24. h3 {[%clk 0:00:39.8]} 24... Nf6 {[%clk
0:01:24.2]} 25. Kh2 {[%clk 0:00:39.4]} 25... g4 {[%clk 0:01:19.5]} 26. Rd3
{[%clk 0:00:36]} 26... Rc4 {[%clk 0:01:11.8]} 27. Bf4 {[%clk 0:00:33.9]} 27...
h5 {[%clk 0:00:59.5]} 28. Red1 {[%clk 0:00:33.1]} 28... h4 {[%clk 0:00:56.1]}
29. hxg4 {[%clk 0:00:31.2]} 29... Nxg4+ {[%clk 0:00:55.9]} 30. Kg1 {[%clk
0:00:31.2]} 30... hxg3 {[%clk 0:00:55.5]} 31. Bxd6 {[%clk 0:00:31.4]} 31... Nf2
{[%clk 0:00:52.6]} 32. Be5 {[%clk 0:00:15.9]} 32... Nxd3 {[%clk 0:00:31.4]} 33.
Rxd3 {[%clk 0:00:15.3]} 33... Kh7 {[%clk 0:00:26.7]} 34. Bh3 {[%clk 0:00:15.6]}
34... Nh4 {[%clk 0:00:22.6]} 35. Rxg3 {[%clk 0:00:15.6]} 35... Ng6 {[%clk
0:00:21.9]} 36. Bf5 {[%clk 0:00:15.7]} 36... a5 {[%clk 0:00:19.9]} 37. Bxg6+
{[%clk 0:00:13]} 37... fxg6 {[%clk 0:00:20.8]} 38. bxa5 {[%clk 0:00:13]} 38...
bxa5 {[%clk 0:00:21.7]} 39. Bd4 {[%clk 0:00:13.6]} 39... Ra4 {[%clk 0:00:21.1]}
40. Rh3+ {[%clk 0:00:14.3]} 40... Kg8 {[%clk 0:00:21.2]} 41. Rh2 {[%clk
0:00:15.2]} 41... Kf7 {[%clk 0:00:21.3]} 42. Rb2 {[%clk 0:00:15.7]} 42... g5
{[%clk 0:00:20.3]} 43. Kg2 {[%clk 0:00:16.4]} 43... Ke6 {[%clk 0:00:20.5]} 44.
Kg3 {[%clk 0:00:16.9]} 44... Kf5 {[%clk 0:00:21]} 45. Kf3 {[%clk 0:00:17.1]}
45... g4+ {[%clk 0:00:21]} 46. Kg3 {[%clk 0:00:17.7]} 46... Ke4 {[%clk
0:00:20.5]} 47. Rf2 {[%clk 0:00:17.3]} 47... Kd3 {[%clk 0:00:19.6]} 48. Kxg4
{[%clk 0:00:17.7]} 48... Rc4 {[%clk 0:00:20]} 49. Kf5 {[%clk 0:00:17.6]} 49...
a4 {[%clk 0:00:20.3]} 50. Ke5 {[%clk 0:00:17.7]} 50... a3 {[%clk 0:00:20.8]} 51.
Kd5 {[%clk 0:00:18]} 51... Rc8 {[%clk 0:00:21.2]} 52. Rh2 {[%clk 0:00:16.1]}
52... Rd8+ {[%clk 0:00:20.3]} 53. Kc5 {[%clk 0:00:16.3]} 53... Rb8 {[%clk
0:00:21]} 54. Be5 {[%clk 0:00:14.7]} 54... Rb2 {[%clk 0:00:20.6]} 55. Rh3+
{[%clk 0:00:13.9]} 55... Ke4 {[%clk 0:00:20.7]} 56. Bd4 {[%clk 0:00:11.7]} 56...
Rxa2 {[%clk 0:00:20.6]} 57. Rh4+ {[%clk 0:00:11.7]} 57... Kd3 {[%clk 0:00:20.6]}
58. c4 {[%clk 0:00:12]} 58... Rg2 {[%clk 0:00:19]} 59. Rh3+ {[%clk 0:00:11.8]}
59... Ke4 {[%clk 0:00:18.3]} 60. Rxa3 {[%clk 0:00:11.7]} 60... Rg5+ {[%clk
0:00:18.1]} 61. Kb6 {[%clk 0:00:10]} 61... Kxd4 {[%clk 0:00:18.3]} 62. c5 {[%clk
0:00:10.5]} 62... Rxc5 {[%clk 0:00:17.8]} 63. Ra4+ {[%clk 0:00:09.9]} 63... Rc4
{[%clk 0:00:17.4]} 64. Rxc4+ {[%clk 0:00:10.4]} 64... Kxc4 {[%clk 0:00:18.3]}
1/2-1/2

[Event "*** Titled Tuesday Blitz"]
[Site "Chess.com"]
[Date "2020.04.21"]
[Round "5"]
[White "ChessTraining77"]
[Black "rpragchess"]
[Result "0-1"]
[WhiteElo "2799"]
[BlackElo "2770"]
[TimeControl "180+1"]
[EndTime "10:57:57 PDT"]
[Termination "rpragchess won on time"]

1. e4 {[%clk 0:03:00.9]} 1... e5 {[%clk 0:02:58.2]} 2. Nf3 {[%clk 0:03:00.1]}
2... Nc6 {[%clk 0:02:58]} 3. Bb5 {[%clk 0:02:59.2]} 3... a6 {[%clk 0:02:57.7]}
4. Ba4 {[%clk 0:02:59]} 4... Nf6 {[%clk 0:02:57.7]} 5. O-O {[%clk 0:02:59]} 5...
b5 {[%clk 0:02:56.6]} 6. Bb3 {[%clk 0:02:58.1]} 6... Bc5 {[%clk 0:02:57.5]} 7.
c3 {[%clk 0:02:58.3]} 7... d6 {[%clk 0:02:56.5]} 8. d4 {[%clk 0:02:58.4]} 8...
Bb6 {[%clk 0:02:56.7]} 9. Be3 {[%clk 0:02:58.6]} 9... O-O {[%clk 0:02:54.6]} 10.
Nbd2 {[%clk 0:02:58]} 10... h6 {[%clk 0:02:52.7]} 11. h3 {[%clk 0:02:49.8]}
11... Re8 {[%clk 0:02:48.1]} 12. dxe5 {[%clk 0:02:46.8]} 12... Bxe3 {[%clk
0:02:11.9]} 13. exf6 {[%clk 0:02:45.8]} 13... Bxd2 {[%clk 0:02:11.7]} 14. Qxd2
{[%clk 0:02:45.4]} 14... Qxf6 {[%clk 0:02:11.7]} 15. Bd5 {[%clk 0:02:44.9]}
15... Bb7 {[%clk 0:02:11.3]} 16. Rae1 {[%clk 0:02:40.3]} 16... Rad8 {[%clk
0:02:00.7]} 17. Nd4 {[%clk 0:02:30.9]} 17... Nxd4 {[%clk 0:01:21.5]} 18. Bxb7
{[%clk 0:02:28.7]} 18... Ne6 {[%clk 0:01:22.4]} 19. Bc6 {[%clk 0:01:50.1]} 19...
Rf8 {[%clk 0:01:21.5]} 20. a4 {[%clk 0:01:42.1]} 20... Nf4 {[%clk 0:00:55]} 21.
Kh2 {[%clk 0:01:22.3]} 21... Qh4 {[%clk 0:00:23.7]} 22. axb5 {[%clk 0:00:56.6]}
22... axb5 {[%clk 0:00:24.6]} 23. Qe3 {[%clk 0:00:50.5]} 23... Rb8 {[%clk
0:00:20.3]} 24. Rd1 {[%clk 0:00:47.4]} 24... Rb6 {[%clk 0:00:16.8]} 25. Bd7
{[%clk 0:00:45.9]} 25... Ng6 {[%clk 0:00:17]} 26. Bg4 {[%clk 0:00:43.8]} 26...
h5 {[%clk 0:00:14.2]} 27. Be2 {[%clk 0:00:43]} 27... Qf4+ {[%clk 0:00:13.8]} 28.
Qxf4 {[%clk 0:00:37.8]} 28... Nxf4 {[%clk 0:00:14.7]} 29. Rfe1 {[%clk
0:00:37.6]} 29... h4 {[%clk 0:00:14.5]} 30. Bf1 {[%clk 0:00:36.7]} 30... Ra8
{[%clk 0:00:14.5]} 31. e5 {[%clk 0:00:36.3]} 31... dxe5 {[%clk 0:00:10.2]} 32.
Rxe5 {[%clk 0:00:35.6]} 32... Ra2 {[%clk 0:00:10.3]} 33. Re8+ {[%clk 0:00:34.3]}
33... Kh7 {[%clk 0:00:10.2]} 34. Rd4 {[%clk 0:00:33.9]} 34... g5 {[%clk
0:00:09.6]} 35. Rd7 {[%clk 0:00:32.1]} 35... Kg7 {[%clk 0:00:09.2]} 36. Rxc7
{[%clk 0:00:30.3]} 36... Rf6 {[%clk 0:00:09.6]} 37. Bxb5 {[%clk 0:00:27]} 37...
Rxb2 {[%clk 0:00:09.7]} 38. Bc4 {[%clk 0:00:20.9]} 38... Rxf2 {[%clk 0:00:09.8]}
39. Ree7 {[%clk 0:00:21.3]} 39... Nh5 {[%clk 0:00:09.8]} 40. Bd5 {[%clk
0:00:20]} 40... Ng3 {[%clk 0:00:10.3]} 41. Re1 {[%clk 0:00:12.1]} 41... Rf1
{[%clk 0:00:10.8]} 42. Rxf1 {[%clk 0:00:10.1]} 42... Rxf1 {[%clk 0:00:11.7]} 43.
Rxf7+ {[%clk 0:00:09]} 43... Rxf7 {[%clk 0:00:12.6]} 44. Bxf7 {[%clk 0:00:08]}
44... Kxf7 {[%clk 0:00:13.5]} 45. Kg1 {[%clk 0:00:08]} 45... Ke6 {[%clk
0:00:14.2]} 46. Kf2 {[%clk 0:00:07.8]} 46... Ne4+ {[%clk 0:00:11.1]} 47. Kf3
{[%clk 0:00:07.9]} 47... Nxc3 {[%clk 0:00:09.1]} 48. Kg4 {[%clk 0:00:08]} 48...
Kf6 {[%clk 0:00:09.5]} 49. g3 {[%clk 0:00:07.7]} 49... hxg3 {[%clk 0:00:10.4]}
50. Kxg3 {[%clk 0:00:07.6]} 50... Kf5 {[%clk 0:00:10.8]} 51. h4 {[%clk
0:00:06.9]} 51... g4 {[%clk 0:00:11.1]} 52. h5 {[%clk 0:00:07.2]} 52... Ne4+
{[%clk 0:00:11.7]} 53. Kh4 {[%clk 0:00:06.9]} 53... Nf6 {[%clk 0:00:12.4]} 54.
h6 {[%clk 0:00:06]} 54... Nh7 {[%clk 0:00:12.8]} 0-1